bitfinex-derivatives/quotes_ETHF0:USTF0_20251003
["timestamp","ask_amount","ask_price","bid_price","bid_amount"]
[1759514016428,3.2078,4464.1,4463.5,0.40298]
[1759514016832,0.00193095,4464.4,4463.7,0.40297]
[1759514017035,0.00193095,4464.4,4463.8,0.23]
[1759514017333,0.00193095,4464.4,4464.3,1.131]
[1759514017533,3.2078,4465.8,4464.8,1.131]
[1759514017737,3.2078,4465.8,4465.3,0.01421613]
[1759514018031,2.85446509,4465.7,4465.3,1.14521613]
[1759514018437,2.85616398,4465.7,4465.4,0.23]
[1759514018740,3.2078,4466.3,4465.5,1.14753415]
[1759514019138,2.94614164,4466.2,4465.5,1.14753415]
[1759514019439,3.9492,4465.6,4465.5,0.01653415]
[1759514019639,0.7249,4465.4,4465.3,0.00173502]
[1759514019936,0.7232,4465.3,4464.1,3.2078]
[1759514020237,0.7232,4464.5,4463.9,0.23]
[1759514020644,0.7232,4464.3,4463.9,0.23]
[1759514020940,0.7232,4464.3,4462.8,34.935]
[1759514020941,0.7232,4464.0,4462.7,1.131]
[1759514021145,3.2078,4463.5,4462.7,4.3388]
[1759514021444,2.97450671,4463.4,4462.7,4.3388]
[1759514021641,2.97450671,4463.4,4462.8,0.40305]
[1759514021940,2.97450671,4463.4,4462.9,0.23]
[1759514022240,3.2078,4463.5,4463.4,1.131]
[1759514022444,3.2078,4463.5,4463.1,0.23]
[1759514022848,3.2078,4463.5,4463.2,0.23]
[1759514023344,3.2078,4463.5,4460.0,1.58424452]
[1759514023345,0.4069,4462.5,4460.0,1.58424452]
[1759514023640,0.4069,4462.5,4458.8,1.131]
[1759514023641,3.2078,4461.1,4458.8,1.131]
[1759514023943,1.00776,4462.3,4459.4,0.40335]
[1759514023944,3.2078,4459.9,4459.4,0.40335]
[1759514024140,3.2078,4460.5,4459.5,1.361]
[1759514024445,3.2078,4460.5,4459.7,1.53433]
[1759514024446,2.97376725,4459.8,4459.7,1.53433]
[1759514024743,0.00203544,4460.5,4460.4,1.53427]
[1759514024942,0.00203544,4460.5,4460.4,1.361]
[1759514025137,0.00203544,4460.5,4460.1,1.131]
[1759514025443,3.2078,4460.2,4459.5,1.13262519]
[1759514025737,2.8771734,4460.1,4459.8,1.131]
[1759514025943,2.8771734,4460.1,4459.9,0.231]
[1759514026138,2.8771734,4460.4,4459.9,0.231]
[1759514026339,2.8771734,4460.4,4459.5,0.00162519]
[1759514026340,3.2078,4460.1,4459.6,0.231]
[1759514026540,3.2078,4460.1,4459.6,1.362]
[1759514026849,2.93480481,4460.0,4459.7,1.362]
[1759514027041,2.93480481,4460.0,4459.5,0.00162519]
[1759514027345,2.93480481,4460.0,4459.7,1.131]
[1759514027746,2.93480481,4460.0,4459.6,0.231]
[1759514027948,2.85306899,4460.0,4459.7,1.131]
[1759514028144,0.00203544,4460.5,4460.1,1.131]
[1759514028349,3.2078,4461.1,4460.8,0.4417]
[1759514028645,3.2078,4461.7,4461.0,1.131]
[1759514029039,3.2078,4461.2,4461.1,0.4032]
[1759514029248,0.00280399,4461.2,4461.1,1.362]
[1759514029447,0.00280399,4461.2,4461.1,1.131]
[1759514029646,0.00280399,4461.2,4461.1,1.362]
[1759514029949,3.2078,4462.4,4461.9,0.40312]
[1759514030148,3.2078,4462.4,4462.0,0.231]
[1759514030343,3.2078,4462.4,4462.1,1.131]
[1759514030842,2.96307347,4462.3,4462.2,1.361]
[1759514031247,3.20982126,4462.4,4462.2,1.7641]
[1759514031545,3.20982126,4462.4,4462.3,1.131]
[1759514031942,6.51515759,4462.4,4462.3,0.23]
[1759514032144,0.40311,4462.2,4461.6,1.5727]
[1759514032341,3.2078,4461.9,4461.6,0.4417]
[1759514032540,0.40315,4461.7,4461.0,1.276]
[1759514032741,3.2078,4461.1,4461.0,1.276]
[1759514033150,6.14001272,4461.1,4461.0,1.276]
[1759514033351,6.14001272,4461.1,4461.0,1.131]
[1759514034044,6.14001272,4461.1,4461.0,6.131]
[1759514034045,3.2078,4461.1,4461.0,6.131]
[1759514034245,3.2078,4461.6,4461.0,5.0]
[1759514034443,3.20982126,4462.4,4462.1,0.40311]
[1759514034644,3.20982126,4462.4,4462.3,1.53409]
[1759514034845,0.00202126,4462.4,4462.3,1.53409]
[1759514035042,0.00202126,4462.4,4462.3,6.53409]
[1759514035247,0.00202126,4462.4,4462.3,6.76509]
[1759514035848,3.2078,4463.0,4462.9,1.53404]
[1759514036053,3.2078,4463.0,4462.9,1.76504]
[1759514036054,3.14036119,4463.0,4462.9,1.76504]
[1759514036246,3.2078,4464.3,4463.2,0.4417]
[1759514036445,3.2078,4464.3,4464.1,1.131]
[1759514036642,6.08073464,4464.9,4464.8,1.5727]
[1759514036851,3.20968733,4464.9,4464.8,1.57496693]
[1759514037046,3.20968733,4464.9,4464.8,1.80596693]
[1759514037246,3.20968733,4464.9,4464.8,2.20883693]
[1759514037648,3.20968733,4464.9,4464.8,7.20883693]
[1759514038351,3.20968733,4464.9,4464.8,6.97783693]
[1759514038546,3.20968733,4464.9,4464.8,7.20883693]
[1759514038741,0.00188733,4464.9,4464.8,1.57496693]
[1759514038947,0.00188733,4464.9,4464.8,1.80696693]
[1759514039447,0.00188733,4464.9,4464.8,6.80696693]
[1759514039644,0.00188733,4464.9,4464.8,6.57496693]
[1759514039845,0.00188733,4464.9,4464.8,1.80696693]
[1759514040242,0.00188733,4464.9,4464.8,6.80696693]
[1759514040445,0.00188733,4464.9,4464.8,1.57496693]
[1759514040647,0.00188733,4464.9,4464.8,1.80696693]
[1759514040845,3.2078,4466.2,4465.7,1.131]
[1759514041257,3.2078,4466.2,4465.8,0.232]
[1759514041450,3.2078,4466.2,4466.1,1.131]
[1759514041649,3.2078,4466.2,4466.1,1.363]
[1759514041846,3.21005208,4466.2,4466.1,1.363]
[1759514042052,3.2078,4466.8,4466.6,0.4027]
[1759514042245,3.2078,4467.3,4467.2,0.4435]
[1759514042450,3.2078,4467.3,4467.2,1.8311]
[1759514042759,3.2078,4467.3,4467.2,6.8311]
[1759514042953,1.00664,4467.2,4466.4,0.4435]
[1759514043260,3.2078,4466.5,4466.0,0.4435]
[1759514043454,3.2078,4466.5,4466.1,1.1556]
[1759514043455,0.40274,4466.3,4466.1,1.1556]
[1759514043646,1.00691,4466.0,4464.8,1.59956693]
[1759514043853,3.2078,4464.9,4464.8,0.00226693]
[1759514044256,6.12863908,4464.9,4464.8,0.00226693]
[1759514044452,11.12863908,4464.9,4464.3,0.231]
[1759514044648,3.2078,4464.4,4464.3,0.231]
[1759514044960,6.18484835,4464.4,4464.3,0.231]
[1759514045258,6.18484835,4464.4,4464.3,0.0138092]
[1759514045561,6.18484835,4464.4,4464.3,1.17191561]
[1759514045747,3.2078,4464.4,4464.3,1.17191561]
[1759514045954,3.2078,4464.4,4464.3,0.01631561]
[1759514045955,6.09482364,4464.4,4464.3,0.01631561]
[1759514046147,6.09482364,4464.4,4464.3,0.24831561]
[1759514046349,6.09482364,4464.4,4464.3,1.17191561]
[1759514046550,6.09482364,4464.4,4464.3,0.01631561]
[1759514047056,6.09482364,4464.4,4463.2,0.4435]
[1759514047057,0.40298,4463.6,4463.4,0.232]
[1759514047252,3.2078,4463.5,4463.4,0.232]
[1759514047448,0.40301,4463.3,4462.8,0.232]
[1759514047650,3.2078,4462.9,4462.8,1.3876]
[1759514047848,3.20999302,4462.9,4462.8,1.79301065]
[1759514048355,3.20999302,4462.9,4462.8,1.15796065]
[1759514048554,3.20999302,4462.9,4462.8,1.79301065]
[1759514048755,0.00219302,4462.9,4462.8,6.79301065]
[1759514049152,0.00219302,4462.9,4462.8,1.15796065]
[1759514049359,0.00219302,4462.9,4462.8,1.38996065]
[1759514049559,0.00219302,4462.9,4462.8,6.38996065]
[1759514049855,3.2078,4463.5,4463.4,1.55859]
[1759514050162,3.2078,4464.5,4464.0,1.1556]
[1759514050354,3.2078,4464.5,4464.2,1.1556]
[1759514050660,3.2078,4464.5,4464.1,1.3876]
[1759514050661,0.40292,4464.3,4464.1,1.3876]
[1759514050849,0.40292,4464.3,4463.9,0.4435]
[1759514050850,0.00160844,4464.3,4464.0,1.1556]
[1759514051052,0.00160844,4464.3,4464.1,1.1556]
[1759514051359,0.00160844,4464.3,4464.2,1.1556]
[1759514051765,0.40295,4464.0,4463.4,1.1556]
[1759514051959,3.2078,4463.5,4463.2,0.4435]
[1759514052258,2.91454917,4463.4,4463.2,0.4435]
[1759514052454,2.91454917,4463.4,4463.3,1.1556]
[1759514052764,3.2078,4463.5,4463.2,0.4435]
[1759514053056,3.2078,4463.5,4463.3,1.1556]
[1759514053254,3.2078,4463.5,4463.2,0.4435]
[1759514053651,2.9334486,4463.4,4463.2,0.4435]
[1759514053960,2.9334486,4463.4,4463.3,1.1556]
[1759514054353,3.3364386,4463.4,4463.3,1.1556]
[1759514054554,2.9334486,4463.4,4463.3,1.1556]
[1759514054756,3.3364386,4463.4,4463.3,1.1556]
[1759514055065,2.9334486,4463.4,4463.3,1.1556]
[1759514055268,3.2078,4463.5,4463.4,1.1556]
[1759514055958,3.2078,4463.5,4463.4,1.55859]
[1759514056154,3.2078,4463.5,4462.8,0.00236065]
[1759514056155,11.31179813,4463.5,4462.8,0.00236065]
[1759514056464,4.21542,4462.9,4461.8,0.5255]
[1759514056758,3.2078,4461.9,4461.0,0.4435]
[1759514056959,3.2078,4461.1,4461.0,0.4435]
[1759514057264,3.20950706,4461.1,4461.0,0.44545701]
[1759514057559,6.14511851,4461.1,4461.0,0.44545701]
[1759514057761,8.20950706,4461.1,4459.8,0.4435]
[1759514058061,3.2078,4460.5,4460.3,0.40327]
[1759514058264,3.2078,4460.5,4460.4,1.8311]
[1759514058666,1.9929,4460.5,4460.4,1.8311]
[1759514058862,3.2078,4461.0,4460.9,1.55882]
[1759514059265,3.2078,4461.0,4460.9,6.1556]
[1759514059461,3.2078,4461.0,4460.9,6.3876]
[1759514060366,3.2078,4461.0,4460.9,6.1556]
[1759514060562,3.2078,4461.0,4460.9,1.3876]
[1759514060768,3.2078,4461.0,4460.9,1.1556]
[1759514060964,3.2078,4461.0,4460.9,6.79082]
[1759514061165,3.2078,4461.0,4460.9,1.1556]
[1759514061361,6.16790144,4461.0,4460.4,0.00255056]
[1759514061664,3.2078,4460.5,4460.4,1.60165056]
[1759514061865,6.16790144,4461.0,4460.4,0.84931056]
[1759514062162,6.16790144,4461.0,4460.6,0.40324]
[1759514062163,3.2078,4461.0,4460.6,0.40324]
[1759514062365,3.2078,4461.0,4460.9,1.1556]
[1759514062866,3.2078,4461.0,4460.9,6.3876]
[1759514063068,0.00170706,4461.1,4461.0,2.00231]
[1759514063271,0.00170706,4461.1,4461.0,1.5991]
[1759514063568,0.00170706,4461.1,4461.0,1.8311]
[1759514064364,0.00170706,4461.1,4461.0,1.5991]
[1759514064568,0.00170706,4461.1,4461.0,1.8311]
[1759514064769,0.00170706,4461.1,4461.0,1.3876]
[1759514064963,0.00170706,4461.1,4461.0,1.8311]
[1759514065465,3.20950706,4461.1,4461.0,1.5991]
[1759514065662,3.20950706,4461.1,4461.0,0.232]
[1759514065965,3.20950706,4461.1,4461.0,1.3876]
[1759514066371,3.20950706,4461.1,4461.0,1.8311]
[1759514066781,0.00170706,4461.1,4461.0,1.8311]
[1759514069180,3.2078,4462.8,4461.7,1.2015]
[1759514069380,3.2078,4462.3,4461.6,0.4733]
[1759514069581,3.2078,4461.8,4461.2,1.2015]
[1759514069882,3.2078,4461.5,4461.3,1.4335]
[1759514070178,3.21006869,4461.5,4461.0,0.4435]
[1759514070380,3.21006869,4461.5,4461.1,1.4335]
[1759514070881,3.21006869,4461.5,4461.2,0.232]
[1759514071075,3.21006869,4461.5,4461.0,0.4435]
[1759514071276,2.86972145,4461.4,4461.1,0.229]
[1759514071477,3.21006869,4461.5,4461.1,0.229]
[1759514071780,3.21006869,4461.5,4461.2,0.232]
[1759514072281,3.21006869,4461.5,4461.3,1.1443]
[1759514072478,3.21006869,4461.5,4461.2,0.232]
[1759514073179,3.21006869,4461.5,4461.2,0.63519]
[1759514073385,3.21006869,4461.5,4461.4,1.1443]
[1759514073988,3.2078,4462.0,4461.9,0.40313]
[1759514074185,3.2078,4462.0,4461.9,1.77943]
[1759514074381,3.2078,4462.0,4461.9,1.3763]
[1759514074885,3.2078,4462.0,4461.9,1.1443]
[1759514075181,3.2078,4462.0,4461.6,1.1443]
[1759514075182,0.40314,4461.8,4461.6,1.1443]
[1759514075379,6.14080647,4462.0,4461.7,1.1443]
[1759514075584,6.14080647,4462.0,4461.6,0.232]
[1759514075784,6.14080647,4462.0,4461.2,1.1443]
[1759514075985,3.2078,4461.5,4460.4,0.00255056]
[1759514076292,3.2078,4460.5,4460.4,0.00255056]
[1759514076486,3.2078,4460.5,4460.4,0.23455056]
[1759514076683,11.13798265,4460.5,4459.1,1.1443]
[1759514076883,0.40335,4459.5,4459.2,0.232]
[1759514077088,0.40333,4459.7,4459.3,0.232]
[1759514077285,6.12150525,4459.4,4458.5,1.1443]
[1759514077485,0.40341,4458.8,4458.5,0.232]
[1759514077783,0.00162969,4458.8,4458.5,1.37885489]
[1759514078092,0.00162969,4458.8,4458.7,1.1443]
[1759514078593,0.00162969,4458.8,4458.7,6.54772]
[1759514079092,0.00162969,4458.8,4458.7,6.1443]
[1759514079487,0.00162969,4458.8,4458.7,1.3763]
[1759514079884,0.00162969,4458.8,4458.7,6.3763]
[1759514080085,0.00162969,4458.8,4458.7,1.3763]
[1759514080286,0.00162969,4458.8,4458.5,0.00255489]
[1759514080582,0.00162969,4458.8,4458.6,0.232]
[1759514080790,0.00162969,4458.8,4458.7,1.1443]
[1759514081191,0.00162969,4458.8,4458.6,0.232]
[1759514081693,0.00162969,4458.8,4458.7,1.1443]
[1759514082196,0.00162969,4458.8,4458.7,1.54772]
[1759514082891,0.00162969,4458.8,4458.7,1.1443]
[1759514083501,3.2078,4459.4,4459.3,1.1443]
[1759514083798,3.2078,4459.4,4459.3,1.3763]
[1759514084493,3.21047752,4459.4,4459.3,1.3763]
[1759514085297,3.2078,4459.9,4459.8,0.458]
[1759514085497,3.2078,4460.4,4459.8,0.69]
[1759514085791,3.2078,4460.4,4459.9,0.232]
[1759514085997,3.2078,4460.4,4460.0,1.1443]
[1759514086296,2.93801043,4460.3,4460.1,0.232]
[1759514086594,1.0731,4460.1,4458.7,1.1443]
[1759514086789,3.2078,4459.4,4458.8,0.232]
[1759514087296,3.2078,4459.4,4459.3,1.1443]
[1759514087496,3.2078,4459.4,4459.3,1.3763]
[1759514088497,3.2078,4459.4,4459.3,6.3763]
[1759514088892,3.2078,4459.4,4459.3,1.1443]
[1759514089089,3.2078,4459.4,4459.3,1.3763]
[1759514090292,3.2078,4459.4,4459.3,0.232]
[1759514090689,3.2078,4459.4,4458.7,1.1443]
[1759514091292,0.4034,4459.0,4458.5,0.00255489]
[1759514091590,1.47649,4459.1,4458.5,0.00255489]
[1759514091794,1.0731,4459.0,4458.6,0.232]
[1759514092190,1.0731,4459.1,4458.7,0.232]
[1759514092493,3.2078,4459.4,4458.7,0.232]
[1759514092696,3.2078,4459.4,4458.9,1.1443]
[1759514092889,2.94604731,4459.3,4459.0,1.1443]
[1759514093094,2.94604731,4459.3,4458.9,1.5477]
[1759514093395,3.2078,4459.4,4459.3,1.1443]
[1759514093592,1.0731,4459.9,4458.8,3.2078]
[1759514093792,3.2078,4459.5,4458.9,0.63539]
[1759514093994,3.2078,4459.5,4458.9,0.232]
[1759514094201,3.2078,4460.0,4459.4,1.1443]
[1759514094499,3.2078,4460.0,4459.6,0.40333]
[1759514094699,3.2078,4460.0,4459.7,1.1443]
[1759514094992,3.2078,4460.0,4459.8,1.1443]
[1759514095197,3.2078,4460.0,4459.5,0.232]
[1759514095396,0.40338,4459.2,4458.5,0.00255489]
[1759514095600,3.2078,4459.0,4458.6,1.1443]
[1759514095787,3.2078,4459.0,4458.5,0.00255489]
[1759514096099,0.8411,4458.6,4458.5,0.00255489]
[1759514096295,0.8411,4458.6,4456.9,0.172151]
[1759514096296,0.8161,4457.9,4456.9,0.172151]
[1759514096496,0.8161,4457.1,4456.6,0.238]
[1759514096691,3.2078,4457.2,4456.6,0.238]
[1759514097302,0.8161,4456.6,4455.9,0.17594093]
[1759514097505,3.2078,4456.7,4456.0,0.238]
[1759514097705,2.95957891,4456.5,4456.1,0.238]
[1759514097896,3.2078,4456.2,4456.1,0.238]
[1759514098092,6.16737891,4456.7,4456.1,1.78595]
[1759514098396,2.95957891,4457.1,4456.6,1.54791]
[1759514098601,2.95957891,4457.1,4457.0,1.1443]
[1759514098793,0.00166112,4457.2,4457.1,0.40356]
[1759514098996,0.00166112,4457.2,4457.1,1.54786]
[1759514099298,0.00166112,4457.2,4457.1,1.1443]
[1759514099698,0.00166112,4457.2,4457.1,1.78586]
[1759514100299,0.00166112,4457.2,4456.4,1.1443]
[1759514100500,0.00166112,4457.2,4456.6,0.40361]
[1759514100802,0.00166112,4457.2,4456.6,1.1443]
[1759514101004,0.00166112,4457.2,4456.9,3.2078]
[1759514101203,3.2078,4458.3,4457.4,0.458]
[1759514101392,3.2078,4459.3,4458.1,1.1443]
[1759514101597,3.2078,4459.9,4459.2,1.1443]
[1759514101802,0.178,4460.7,4460.4,0.458]
[1759514101994,0.178,4462.2,4460.8,1.1676]
[1759514102202,0.00239059,4462.2,4462.0,3.2078]
[1759514102403,0.00239059,4462.2,4462.1,1.4056]
[1759514102700,3.2078,4463.5,4462.3,1.1676]
[1759514102905,0.5634,4465.2,4462.9,1.1676]
[1759514102906,0.9721,4464.5,4462.9,1.1676]
[1759514103095,0.4029,4464.4,4463.7,3.2078]
[1759514103299,0.9721,4464.5,4463.2,3.4458]
[1759514103300,0.9721,4463.8,4463.2,3.4458]
[1759514103504,0.9721,4464.0,4463.3,0.238]
[1759514103700,3.90116012,4463.7,4463.4,0.238]
[1759514103905,4.1799,4463.6,4462.4,1.1676]
[1759514104205,3.2078,4463.1,4462.5,0.238]
[1759514104602,2.87085732,4463.0,4462.5,0.238]
[1759514104802,3.84295732,4463.0,4462.0,3.2078]
[1759514105106,3.84295732,4463.0,4462.0,4.3754]
[1759514105303,3.84295732,4463.0,4462.1,0.238]
[1759514105699,2.87085732,4463.0,4462.1,0.238]
[1759514105903,4.1799,4462.6,4461.1,1.1676]
[1759514106101,3.2078,4462.1,4461.5,3.2078]
[1759514106500,2.90500674,4462.0,4461.6,0.238]
[1759514106708,3.2078,4462.1,4461.7,1.1676]
[1759514107006,3.2078,4462.8,4462.2,0.4031]
[1759514107206,3.2078,4462.8,4462.3,0.238]
[1759514107404,3.2078,4462.8,4462.4,0.238]
[1759514107912,3.2078,4462.8,4462.7,1.1676]
[1759514108109,0.022,4462.9,4462.8,1.57065]
[1759514108305,0.022,4462.9,4462.8,1.1676]
[1759514108507,0.022,4462.9,4462.8,1.4056]
[1759514109011,0.022,4462.9,4462.8,6.4056]
[1759514109201,0.0021602,4463.8,4463.5,1.1676]
[1759514109407,0.0021602,4463.8,4463.7,1.1676]
[1759514109803,0.0021602,4463.8,4463.7,9.3754]
[1759514110011,3.2078,4465.5,4463.7,8.2078]
[1759514110210,3.2078,4465.0,4464.7,0.40287]
[1759514110410,3.2078,4465.7,4464.8,1.4056]
[1759514110806,3.18938052,4465.1,4464.2,3.2078]
[1759514111009,3.19127436,4465.1,4464.3,0.238]
[1759514111314,3.19127436,4465.1,4464.4,1.1676]
[1759514111710,0.9963,4464.5,4464.2,0.00193741]
[1759514111910,3.2078,4464.6,4464.4,1.1676]
[1759514112111,3.20969384,4465.1,4464.3,1.4056]
[1759514112408,0.00189384,4465.1,4464.5,1.1676]
[1759514112609,0.00189384,4465.1,4465.0,1.57045]
[1759514112910,0.00189384,4465.1,4465.0,1.4056]
[1759514113405,0.00189384,4465.1,4465.0,1.1676]
[1759514113610,0.00189384,4465.1,4465.0,1.4056]
[1759514113811,0.00189384,4465.1,4465.0,1.41793533]
[1759514114808,0.00189384,4465.1,4465.0,1.82078533]
[1759514115002,0.00189384,4465.1,4465.0,1.41793533]
[1759514115214,0.00189384,4465.1,4465.0,1.17993533]
[1759514115407,0.00189384,4465.1,4465.0,6.41793533]
[1759514115609,0.00189384,4465.1,4465.0,1.41793533]
[1759514115803,0.00189384,4465.1,4465.0,6.82078533]
[1759514116014,0.00189384,4465.1,4465.0,1.41793533]
[1759514116206,0.00189384,4465.1,4465.0,1.82078533]
[1759514116409,3.2078,4466.5,4466.2,1.57033]
[1759514116604,3.2078,4467.0,4466.3,0.64073]
[1759514116809,3.2078,4467.0,4466.6,0.01233533]
[1759514117107,2.92199374,4466.9,4466.8,1.1676]
[1759514117415,0.00222219,4466.9,4466.8,0.238]
[1759514117812,0.00222219,4466.9,4466.8,1.41793533]
[1759514118515,0.00222219,4466.9,4466.8,1.17993533]
[1759514118712,0.00222219,4466.9,4466.8,0.01358565]
[1759514119013,8.86922285,4466.9,4465.3,1.6269]
[1759514119319,8.86922285,4466.9,4465.5,1.1676]
[1759514119320,3.2078,4466.1,4465.5,1.1676]
[1759514119513,0.3833,4466.0,4464.0,3.2078]
[1759514119715,0.3833,4466.0,4462.5,0.4593]
[1759514119716,0.40293,4464.2,4463.4,1.1676]
[1759514119912,3.968,4464.5,4463.5,0.239]
[1759514120111,3.2078,4464.0,4463.6,1.1676]
[1759514120510,3.2078,4464.0,4463.5,0.239]
[1759514120715,0.7602,4465.1,4463.5,0.239]
[1759514120716,3.2078,4464.2,4463.6,1.1676]
[1759514120916,3.2078,4464.7,4463.6,1.1676]
[1759514121117,3.2078,4464.2,4463.6,1.1676]
[1759514121317,3.2078,4464.2,4463.7,0.239]
[1759514121614,1.00715,4465.0,4463.5,0.00268361]
[1759514121615,3.2078,4464.7,4463.8,1.1676]
[1759514121818,3.2078,4464.2,4464.0,1.1676]
[1759514122021,3.2078,4464.2,4463.9,0.239]
[1759514122218,3.2078,4464.7,4464.0,1.57054]
[1759514122520,3.2078,4464.7,4464.0,1.1676]
[1759514123026,3.2078,4465.2,4464.2,1.1676]
[1759514123220,3.2078,4465.2,4464.3,1.1676]
[1759514123618,3.62032724,4465.1,4464.4,0.239]
[1759514123913,0.7602,4464.8,4464.4,0.239]
[1759514124114,0.40286,4464.9,4464.4,0.239]
[1759514124315,0.40286,4464.9,4464.4,1.4066]
[1759514124510,3.2078,4464.7,4464.5,1.1676]
[1759514125022,3.2078,4464.7,4464.6,1.6269]
[1759514125219,3.2078,4465.2,4464.7,0.40288]
[1759514125522,3.2078,4465.8,4464.7,4.77828]
[1759514125718,3.2078,4465.8,4464.7,4.3754]
[1759514125918,2.9612977,4465.7,4464.7,1.1676]
[1759514126422,0.40282,4465.4,4464.7,1.1676]
[1759514126613,2.9612977,4465.7,4464.7,1.1676]
[1759514127019,2.9612977,4465.7,4465.3,0.4607]
[1759514127225,3.2078,4465.8,4465.4,0.239]
[1759514127523,3.61053,4466.4,4465.7,1.51658]
[1759514127709,3.61053,4466.4,4466.3,1.1138]
[1759514127710,3.2078,4466.4,4466.3,1.1138]
[1759514127910,0.00222219,4466.9,4466.8,1.1138]
[1759514128117,1.1216,4468.5,4466.9,1.1138]
[1759514128413,0.40265,4467.3,4467.0,0.239]
[1759514128611,0.40262,4467.6,4467.0,0.239]
[1759514128811,2.95144577,4467.8,4467.0,0.239]
[1759514128812,1.1216,4467.7,4467.0,0.239]
[1759514129017,0.00197077,4467.7,4467.2,3.2078]
[1759514129316,0.40458077,4467.7,4467.3,0.239]
[1759514129522,0.40262,4467.6,4467.3,0.239]
[1759514129718,1.1216,4467.5,4467.3,0.239]
[1759514129922,1.1216,4467.6,4467.3,0.239]
[1759514130117,1.1216,4467.6,4467.4,0.239]
[1759514130321,1.1216,4467.5,4467.4,0.239]
[1759514130715,7.97042477,4467.5,4466.8,0.238]
[1759514130921,3.2078,4467.2,4466.7,0.239]
[1759514131122,0.40269,4466.8,4466.7,0.239]
[1759514131418,6.52429,4466.8,4466.7,0.239]
[1759514131621,6.52429,4466.8,4465.5,34.935]
[1759514131622,0.40273,4466.4,4465.6,3.2078]
[1759514131916,0.40271,4466.6,4465.9,0.40277]
[1759514132124,1.1216,4466.8,4465.8,1.0868]
[1759514132312,3.2078,4467.2,4466.2,1.0868]
[1759514132513,0.40263,4467.5,4466.7,4.69729]
[1759514132712,0.00197077,4467.7,4467.2,0.40265]
[1759514132919,0.00197077,4467.7,4467.4,1.0868]
[1759514133114,0.00197077,4467.7,4467.4,0.40263]
[1759514133320,0.00197077,4467.7,4467.6,1.0868]
[1759514133522,0.40458077,4467.7,4467.3,3.2078]
[1759514133726,0.40264,4467.5,4467.4,0.239]
[1759514134028,0.00197077,4467.7,4467.5,1.0868]
[1759514134327,0.00197077,4467.7,4466.6,34.932]
[1759514134328,0.00197077,4467.7,4466.8,1.0868]
[1759514134629,1.1597,4467.4,4466.1,4.2946]
[1759514134822,4.3675,4467.4,4466.2,0.239]
[1759514135028,3.2078,4467.4,4466.3,1.0868]
[1759514135223,0.40265,4467.3,4466.7,0.40269]
[1759514135426,0.40265,4467.3,4466.9,1.0868]
[1759514135622,0.40262,4467.6,4467.1,3.2078]
[1759514135827,0.00197077,4467.7,4467.2,1.48945]
[1759514136030,0.00197077,4467.7,4467.3,0.239]
[1759514136229,0.00197077,4467.7,4467.6,1.0868]
[1759514136630,0.00197077,4467.7,4467.6,4.2946]
[1759514137224,0.00197077,4467.7,4467.6,1.0868]
[1759514137425,0.00197077,4467.7,4467.6,4.2946]
[1759514137630,0.00197077,4467.7,4467.6,9.2946]
[1759514138231,0.00197077,4467.7,4467.6,4.2946]
[1759514138626,0.022,4467.9,4467.7,0.40261]
[1759514138929,3.2078,4470.4,4467.9,1.0868]
[1759514139228,2.90467509,4469.9,4469.3,0.40246]
[1759514139426,2.90467509,4469.9,4469.0,3.2078]
[1759514139427,6.11247509,4469.9,4469.4,1.3258]
[1759514139623,0.40245,4469.5,4469.4,0.00234762]
[1759514139837,2.01305,4469.5,4469.4,0.01962057]
[1759514140126,10.36051734,4469.5,4469.4,0.01962057]
[1759514140332,1.1597,4468.8,4467.8,3.2078]
[1759514140527,3.2078,4469.4,4468.1,0.4542]
[1759514140828,3.2078,4468.9,4468.0,1.0868]
[1759514141036,3.2078,4468.9,4468.6,1.0868]
[1759514141227,0.40248,4469.2,4468.7,0.239]
[1759514141430,1.1597,4469.1,4468.7,0.239]
[1759514141829,0.40252,4468.8,4468.6,0.00277618]
[1759514142025,3.2078,4468.9,4468.7,0.239]
[1759514142335,2.84444858,4469.3,4468.7,1.72831]
[1759514142535,4.3675,4469.5,4468.7,1.3258]
[1759514142731,3.2078,4469.5,4469.0,1.0868]
[1759514143042,3.6102,4470.1,4469.0,1.48929]
[1759514143332,3.2078,4470.1,4469.3,0.40246]
[1759514143535,3.2078,4470.1,4469.5,1.0868]
[1759514143732,3.2078,4470.1,4469.6,0.40243]
[1759514144030,0.239,4471.2,4469.5,1.0868]
[1759514144031,4.3675,4470.7,4469.5,1.0868]
[1759514144225,3.2078,4470.1,4469.5,1.0868]
[1759514144423,0.4024,4470.0,4469.6,0.239]
[1759514144628,3.2078,4470.1,4469.7,0.239]
[1759514144922,3.2078,4470.1,4469.2,1.0868]
[1759514144923,3.61019,4470.1,4469.8,1.3258]
[1759514145127,3.61019,4470.1,4468.7,3.2078]
[1759514145128,4.3675,4470.1,4468.7,3.2078]
[1759514145329,0.40243,4469.7,4468.8,0.239]
[1759514145529,2.85241449,4469.9,4468.9,1.0868]
[1759514145824,0.00283983,4469.9,4469.4,1.0868]
[1759514146128,0.00283983,4469.9,4469.8,0.40242]
[1759514146328,0.00283983,4469.9,4469.8,1.0868]
[1759514146630,0.00283983,4469.9,4469.8,4.2946]
[1759514146930,0.00283983,4469.9,4469.8,9.2946]
[1759514147136,3.2078,4471.1,4469.8,8.2078]
[1759514147330,1.02736,4472.9,4469.5,0.6932]
[1759514147331,0.022,4472.9,4472.1,1.00553]
[1759514147524,1.1597,4474.8,4473.1,1.0868]
[1759514147725,0.402,4474.5,4473.6,3.2078]
[1759514147927,1.1597,4474.0,4473.7,0.239]
[1759514148134,0.00166658,4474.0,4473.8,0.239]
[1759514148334,1.16136658,4474.0,4473.8,0.239]